[Event "*** Qualifier 2: Titled Tuesday 3|2 Blitz"]
[Site "Chess.com"]
[Date "2017.04.11"]
[Round "3"]
[White "pKiLz5Rn9b"]
[Black "rubhani"]
[Result "1-0"]
[WhiteElo "2514"]
[BlackElo "2375"]
[TimeControl "180+2"]
[EndTime "13:39:36 PDT"]
[Termination "pKiLz5Rn9b won by resignation"]

1. d4 {[%clk 0:03:02]} 1... Nf6 {[%clk 0:02:26.4]} 2. Nf3 {[%clk 0:03:02.7]}
2... e6 {[%clk 0:02:27.7]} 3. Nbd2 {[%clk 0:03:02.2]} 3... d5 {[%clk 0:02:28.6]}
4. e3 {[%clk 0:03:03.7]} 4... c5 {[%clk 0:02:29.3]} 5. c3 {[%clk 0:03:04]} 5...
Nc6 {[%clk 0:02:30.4]} 6. Bd3 {[%clk 0:03:05.4]} 6... Bd6 {[%clk 0:02:31.5]} 7.
dxc5 {[%clk 0:03:06.7]} 7... Bxc5 {[%clk 0:02:31.7]} 8. b4 {[%clk 0:03:08.3]}
8... Bd6 {[%clk 0:02:32.9]} 9. Bb2 {[%clk 0:03:09.9]} 9... O-O {[%clk
0:02:33.6]} 10. O-O {[%clk 0:03:10.8]} 10... a6 {[%clk 0:02:35]} 11. Rc1 {[%clk
0:03:11.5]} 11... b5 {[%clk 0:02:36]} 12. Qe2 {[%clk 0:03:08]} 12... e5 {[%clk
0:02:32.6]} 13. e4 {[%clk 0:03:09.1]} 13... g6 {[%clk 0:02:03]} 14. Rfd1 {[%clk
0:03:05.5]} 14... dxe4 {[%clk 0:01:56.8]} 15. Nxe4 {[%clk 0:03:06.6]} 15... Nxe4
{[%clk 0:01:57.7]} 16. Bxe4 {[%clk 0:03:07.9]} 16... Qc7 {[%clk 0:01:54.2]} 17.
c4 {[%clk 0:03:08.8]} 17... Bb7 {[%clk 0:01:30.7]} 18. a4 {[%clk 0:01:39.7]}
18... bxa4 {[%clk 0:01:13.9]} 19. b5 {[%clk 0:01:41.1]} 19... Nd4 {[%clk
0:01:15]} 20. Nxd4 {[%clk 0:01:31.1]} 20... exd4 {[%clk 0:01:16.3]} 21. Bxb7
{[%clk 0:01:32.4]} 21... Qxb7 {[%clk 0:01:17.6]} 22. Bxd4 {[%clk 0:01:33.7]}
22... axb5 {[%clk 0:01:18]} 23. cxb5 {[%clk 0:01:35.1]} 23... a3 {[%clk
0:01:15]} 24. Ba1 {[%clk 0:01:34.2]} 24... Qb8 {[%clk 0:01:06.7]} 25. g3 {[%clk
0:01:30.5]} 25... Re8 {[%clk 0:01:07.7]} 26. Qc4 {[%clk 0:01:23.1]} 26... Be5
{[%clk 0:01:08.5]} 27. Rd7 {[%clk 0:01:21.6]} 27... Rf8 {[%clk 0:01:07.8]} 28.
h4 {[%clk 0:01:08.8]} 28... Bxa1 {[%clk 0:01:08]} 29. Rxa1 {[%clk 0:01:08.8]}
29... Qe5 {[%clk 0:01:03.8]} 30. Ra2 {[%clk 0:01:06.3]} 30... Rac8 {[%clk
0:01:00]} 31. Qf1 {[%clk 0:00:27]} 31... Rc3 {[%clk 0:00:59.2]} 32. b6 {[%clk
0:00:24.5]} 32... Qc5 {[%clk 0:00:59.6]} 33. Rc7 {[%clk 0:00:18.4]} 33... Rxg3+
{[%clk 0:00:57.7]} 34. Kh2 {[%clk 0:00:19.2]} 34... Qd5 {[%clk 0:00:51.3]} 35.
Kxg3 {[%clk 0:00:10.6]} 35... Qxa2 {[%clk 0:00:52.2]} 36. Qb5 {[%clk 0:00:11.7]}
36... Qb2 {[%clk 0:00:51.4]} 37. Qa5 {[%clk 0:00:10.2]} 37... a2 {[%clk
0:00:35]} 38. Ra7 {[%clk 0:00:11.6]} 38... a1=Q {[%clk 0:00:30.4]} 39. Qxa1
{[%clk 0:00:12.3]} 39... Qxb6 {[%clk 0:00:31.5]} 40. Ra4 {[%clk 0:00:11.9]}
40... Qd6+ {[%clk 0:00:32]} 41. Kg2 {[%clk 0:00:11.1]} 41... Re8 {[%clk
0:00:33]} 42. Qc3 {[%clk 0:00:09.8]} 42... Qd5+ {[%clk 0:00:33.3]} 43. Kh2
{[%clk 0:00:08.8]} 43... h5 {[%clk 0:00:31.3]} 44. Rc4 {[%clk 0:00:09.6]} 44...
Qf5 {[%clk 0:00:30.9]} 45. Kg2 {[%clk 0:00:07.9]} 45... Kh7 {[%clk 0:00:22.6]}
46. Qd4 {[%clk 0:00:05.4]} 46... Re7 {[%clk 0:00:19.1]} 47. Rc3 {[%clk
0:00:06.2]} 47... Qe6 {[%clk 0:00:19]} 48. Qc4 {[%clk 0:00:05.8]} 48... Qf5
{[%clk 0:00:18.4]} 49. Rf3 {[%clk 0:00:06.5]} 49... Qd7 {[%clk 0:00:17.5]} 50.
Kg3 {[%clk 0:00:06.3]} 50... Qb7 {[%clk 0:00:18.2]} 51. Rf4 {[%clk 0:00:06.2]}
51... Qb8 {[%clk 0:00:19.1]} 52. Kg2 {[%clk 0:00:06.9]} 52... Qb7+ {[%clk
0:00:20.4]} 53. Kg3 {[%clk 0:00:08.4]} 53... Rc7 {[%clk 0:00:21.7]} 54. Qe4
{[%clk 0:00:08.1]} 54... Qb3+ {[%clk 0:00:22.8]} 55. Rf3 {[%clk 0:00:08.5]}
55... Qb8 {[%clk 0:00:20.3]} 56. Kg2 {[%clk 0:00:09.5]} 56... Qc8 {[%clk
0:00:19.8]} 57. Qd4 {[%clk 0:00:07.3]} 57... Kg8 {[%clk 0:00:20.2]} 58. Qf4
{[%clk 0:00:06.9]} 58... Rc4 {[%clk 0:00:21.1]} 59. Qxf7+ {[%clk 0:00:07.7]}
59... Kh8 {[%clk 0:00:22]} 60. Qf6+ {[%clk 0:00:08.4]} 60... Kh7 {[%clk
0:00:23.3]} 61. Qe7+ {[%clk 0:00:09.8]} 61... Kh6 {[%clk 0:00:21.3]} 62. Qe3+
{[%clk 0:00:10.8]} 62... Kg7 {[%clk 0:00:21.3]} 63. Qe5+ {[%clk 0:00:11.5]}
63... Kh6 {[%clk 0:00:21.6]} 64. Qg5+ {[%clk 0:00:11.9]} 64... Kg7 {[%clk
0:00:22.8]} 65. Rg3 {[%clk 0:00:12.5]} 65... Qc6+ {[%clk 0:00:22.2]} 66. Kh2
{[%clk 0:00:13.9]} 66... Rc2 {[%clk 0:00:23.2]} 67. Qe7+ {[%clk 0:00:14.4]}
67... Kh6 {[%clk 0:00:24.6]} 68. Qe3+ {[%clk 0:00:15.3]} 68... Kh7 {[%clk
0:00:25.6]} 69. Rf3 {[%clk 0:00:16.5]} 69... Qc7+ {[%clk 0:00:25.8]} 70. Kg2
{[%clk 0:00:17.6]} 70... Rc4 {[%clk 0:00:26.9]} 71. Qe6 {[%clk 0:00:11.2]} 71...
Rg4+ {[%clk 0:00:26.4]} 72. Kh3 {[%clk 0:00:10.2]} 72... Qd8 {[%clk 0:00:19.4]}
73. Rf7+ {[%clk 0:00:09.3]} 73... Kh6 {[%clk 0:00:20.4]} 74. Qe3+ {[%clk
0:00:10.2]} 74... g5 {[%clk 0:00:21.7]} 75. Qe6+ {[%clk 0:00:11.2]} 1-0

[Event "*** Qualifier 2: Titled Tuesday 3|2 Blitz"]
[Site "Chess.com"]
[Date "2017.04.11"]
[Round "3"]
[White "MorpheusPro"]
[Black "MaxLeto"]
[Result "1/2-1/2"]
[WhiteElo "2159"]
[BlackElo "2349"]
[TimeControl "180+2"]
[EndTime "13:41:03 PDT"]
[Termination "Game drawn by stalemate"]

1. d4 {[%clk 0:02:59.3]} 1... g6 {[%clk 0:02:59.9]} 2. Nf3 {[%clk 0:03:00.3]}
2... Bg7 {[%clk 0:03:01.6]} 3. Bf4 {[%clk 0:03:01.3]} 3... b6 {[%clk 0:03:03]}
4. e3 {[%clk 0:03:02.3]} 4... Bb7 {[%clk 0:03:04.7]} 5. Nbd2 {[%clk 0:03:01.8]}
5... d6 {[%clk 0:03:00.4]} 6. h4 {[%clk 0:03:00.2]} 6... h6 {[%clk 0:03:00.1]}
7. Bc4 {[%clk 0:02:56]} 7... Nd7 {[%clk 0:02:59.7]} 8. c3 {[%clk 0:02:52.1]}
8... e5 {[%clk 0:02:49.2]} 9. dxe5 {[%clk 0:02:34.7]} 9... dxe5 {[%clk
0:02:51.1]} 10. Bg3 {[%clk 0:02:25.8]} 10... Qe7 {[%clk 0:02:45]} 11. Qc2 {[%clk
0:02:13.1]} 11... Ngf6 {[%clk 0:02:43.9]} 12. O-O-O {[%clk 0:02:09.5]} 12...
O-O-O {[%clk 0:02:34.5]} 13. e4 {[%clk 0:01:55.1]} 13... Kb8 {[%clk 0:02:13.9]}
14. Rhe1 {[%clk 0:01:53.9]} 14... Nh5 {[%clk 0:02:01.8]} 15. Bh2 {[%clk
0:01:45.8]} 15... Nf4 {[%clk 0:01:43.1]} 16. Bxf4 {[%clk 0:01:39]} 16... exf4
{[%clk 0:01:45]} 17. Nb3 {[%clk 0:01:10.3]} 17... Ne5 {[%clk 0:01:40.7]} 18.
Nxe5 {[%clk 0:01:08]} 18... Bxe5 {[%clk 0:01:42.6]} 19. f3 {[%clk 0:01:03.6]}
19... Qxh4 {[%clk 0:01:42.4]} 20. Bxf7 {[%clk 0:01:02.2]} 20... Qf6 {[%clk
0:01:37.7]} 21. Bd5 {[%clk 0:00:55.5]} 21... c6 {[%clk 0:01:28.3]} 22. Bc4
{[%clk 0:00:54.4]} 22... h5 {[%clk 0:01:28.1]} 23. Rxd8+ {[%clk 0:00:50.1]}
23... Rxd8 {[%clk 0:01:30]} 24. Rd1 {[%clk 0:00:48.4]} 24... g5 {[%clk
0:01:29.2]} 25. Rxd8+ {[%clk 0:00:45.2]} 25... Qxd8 {[%clk 0:01:31.1]} 26. Bf7
{[%clk 0:00:44.2]} 26... Bc8 {[%clk 0:00:36.8]} 27. Bxh5 {[%clk 0:00:39.2]}
27... Qh8 {[%clk 0:00:37]} 28. Bf7 {[%clk 0:00:13.3]} 28... Qh1+ {[%clk
0:00:36.9]} 29. Qd1 {[%clk 0:00:14]} 29... Qxg2 {[%clk 0:00:38]} 30. Bh5 {[%clk
0:00:11.8]} 30... Qh3 {[%clk 0:00:32.1]} 31. Bg4 {[%clk 0:00:10]} 31... Bxg4
{[%clk 0:00:31.9]} 32. fxg4 {[%clk 0:00:10.7]} 32... Qe3+ {[%clk 0:00:33.5]} 33.
Nd2 {[%clk 0:00:08.8]} 33... Kc7 {[%clk 0:00:15.3]} 34. Qf3 {[%clk 0:00:09.7]}
34... Qg1+ {[%clk 0:00:11.9]} 35. Kc2 {[%clk 0:00:10.4]} 35... b5 {[%clk
0:00:08.8]} 36. Qd3 {[%clk 0:00:09.9]} 36... Qxg4 {[%clk 0:00:05.9]} 37. Nf3
{[%clk 0:00:09.9]} 37... Qg2+ {[%clk 0:00:06.1]} 38. Kb3 {[%clk 0:00:10.5]}
38... Bd6 {[%clk 0:00:03.3]} 39. e5 {[%clk 0:00:11.1]} 39... Be7 {[%clk
0:00:04.3]} 40. e6 {[%clk 0:00:11.5]} 40... g4 {[%clk 0:00:05]} 41. Qd7+ {[%clk
0:00:11.8]} 41... Kb6 {[%clk 0:00:06.4]} 42. Nd4 {[%clk 0:00:11]} 42... Qd5+
{[%clk 0:00:04.1]} 43. Kc2 {[%clk 0:00:09.2]} 43... Qxd7 {[%clk 0:00:04.1]} 44.
exd7 {[%clk 0:00:10.1]} 44... Kc7 {[%clk 0:00:05.7]} 45. Ne6+ {[%clk 0:00:04.5]}
45... Kxd7 {[%clk 0:00:06.8]} 46. Nxf4 {[%clk 0:00:06.4]} 46... Kd6 {[%clk
0:00:07.6]} 47. Ng2 {[%clk 0:00:08.3]} 47... Ke5 {[%clk 0:00:08.1]} 48. Kd3
{[%clk 0:00:10.2]} 48... Bg5 {[%clk 0:00:06.4]} 49. b3 {[%clk 0:00:11.1]} 49...
a6 {[%clk 0:00:03.6]} 50. c4 {[%clk 0:00:11.9]} 50... Bh6 {[%clk 0:00:04.5]} 51.
a3 {[%clk 0:00:11.4]} 51... Bg5 {[%clk 0:00:05.3]} 52. a4 {[%clk 0:00:11.5]}
52... bxa4 {[%clk 0:00:03.9]} 53. bxa4 {[%clk 0:00:12.4]} 53... Bh6 {[%clk
0:00:05]} 54. Nh4 {[%clk 0:00:08.2]} 54... Kf6 {[%clk 0:00:03.1]} 55. Ke4 {[%clk
0:00:07.7]} 55... Kg5 {[%clk 0:00:03.9]} 56. Ng2 {[%clk 0:00:08.7]} 56... Bg7
{[%clk 0:00:04.9]} 57. Ke3 {[%clk 0:00:04.3]} 57... Kf5 {[%clk 0:00:04.4]} 58.
Nh4+ {[%clk 0:00:03.3]} 58... Kg5 {[%clk 0:00:03.1]} 59. Ng2 {[%clk 0:00:04.1]}
59... c5 {[%clk 0:00:03.5]} 60. Ke4 {[%clk 0:00:05.1]} 60... Bd4 {[%clk
0:00:05.1]} 61. Nf4 {[%clk 0:00:05.6]} 61... Kh4 {[%clk 0:00:05.3]} 62. Nd3
{[%clk 0:00:05.6]} 62... Kh3 {[%clk 0:00:02.6]} 63. Nf4+ {[%clk 0:00:05.4]}
63... Kg3 {[%clk 0:00:03.1]} 64. Nh5+ {[%clk 0:00:04.6]} 64... Kh3 {[%clk
0:00:02.9]} 65. Nf4+ {[%clk 0:00:04.2]} 65... Kh4 {[%clk 0:00:03.8]} 66. Ne2
{[%clk 0:00:05.2]} 66... Kh3 {[%clk 0:00:04.8]} 67. Nxd4 {[%clk 0:00:05.6]}
67... cxd4 {[%clk 0:00:05.9]} 68. c5 {[%clk 0:00:07]} 68... g3 {[%clk
0:00:06.8]} 69. c6 {[%clk 0:00:08.2]} 69... g2 {[%clk 0:00:08.1]} 70. c7 {[%clk
0:00:10.1]} 70... g1=Q {[%clk 0:00:09.5]} 71. c8=Q+ {[%clk 0:00:10.9]} 71... Kh4
{[%clk 0:00:05.6]} 72. Qh8+ {[%clk 0:00:10.5]} 72... Kg3 {[%clk 0:00:06.9]} 73.
Qg7+ {[%clk 0:00:11.6]} 73... Kf2 {[%clk 0:00:08.5]} 74. Qxg1+ {[%clk 0:00:13]}
74... Kxg1 {[%clk 0:00:10.4]} 75. Kxd4 {[%clk 0:00:14.3]} 75... Kf2 {[%clk
0:00:10.9]} 76. Kc5 {[%clk 0:00:15.5]} 76... Ke3 {[%clk 0:00:12.3]} 77. Kb6
{[%clk 0:00:16.5]} 77... Kd4 {[%clk 0:00:13.6]} 78. Kxa6 {[%clk 0:00:17.6]}
78... Kc5 {[%clk 0:00:15.1]} 79. a5 {[%clk 0:00:17.4]} 79... Kc6 {[%clk
0:00:16.4]} 80. Ka7 {[%clk 0:00:17.6]} 80... Kc7 {[%clk 0:00:17.7]} 81. Ka6
{[%clk 0:00:17.8]} 81... Kb8 {[%clk 0:00:18.7]} 82. Kb6 {[%clk 0:00:18]} 82...
Ka8 {[%clk 0:00:20.4]} 83. a6 {[%clk 0:00:18.2]} 83... Kb8 {[%clk 0:00:22.3]}
84. a7+ {[%clk 0:00:10.8]} 84... Ka8 {[%clk 0:00:24.2]} 85. Ka6 {[%clk
0:00:09.4]} 1/2-1/2

[Event "*** Qualifier 2: Titled Tuesday 3|2 Blitz"]
[Site "Chess.com"]
[Date "2017.04.11"]
[Round "4"]
[White "rubhani"]
[Black "Maitreia"]
[Result "0-1"]
[WhiteElo "2370"]
[BlackElo "2503"]
[TimeControl "180+2"]
[EndTime "13:45:27 PDT"]
[Termination "Maitreia won by resignation"]

1. Nf3 {[%clk 0:03:02]} 1... Nf6 {[%clk 0:02:56.3]} 2. Nc3 {[%clk 0:03:02.5]}
2... c5 {[%clk 0:02:56.3]} 3. e4 {[%clk 0:03:02.9]} 3... d6 {[%clk 0:02:56]} 4.
d4 {[%clk 0:03:01.7]} 4... cxd4 {[%clk 0:02:57.9]} 5. Nxd4 {[%clk 0:03:02.7]}
5... g6 {[%clk 0:02:58.1]} 6. f3 {[%clk 0:03:02]} 6... Bg7 {[%clk 0:02:59.1]} 7.
Be3 {[%clk 0:03:03.4]} 7... O-O {[%clk 0:03:00.7]} 8. Qd2 {[%clk 0:03:05]} 8...
Nc6 {[%clk 0:03:02.3]} 9. O-O-O {[%clk 0:03:04.6]} 9... Bd7 {[%clk 0:03:03.8]}
10. Bc4 {[%clk 0:03:03.1]} 10... Rc8 {[%clk 0:03:04.1]} 11. Bb3 {[%clk 0:03:04]}
11... Ne5 {[%clk 0:03:05.3]} 12. h4 {[%clk 0:03:04]} 12... h5 {[%clk 0:03:05.9]}
13. Kb1 {[%clk 0:03:02]} 13... Nc4 {[%clk 0:03:06.6]} 14. Bxc4 {[%clk
0:03:02.7]} 14... Rxc4 {[%clk 0:03:08.5]} 15. Nd5 {[%clk 0:02:42.2]} 15... Nxd5
{[%clk 0:03:04.1]} 16. exd5 {[%clk 0:02:44.1]} 16... Qb6 {[%clk 0:02:58.9]} 17.
b3 {[%clk 0:02:38.6]} 17... Rfc8 {[%clk 0:02:41.4]} 18. Nf5 {[%clk 0:02:25.7]}
18... Bxf5 {[%clk 0:02:42.4]} 19. Bxb6 {[%clk 0:02:25.9]} 19... Rxc2 {[%clk
0:02:43.4]} 20. Qd4 {[%clk 0:01:53.7]} 20... axb6 {[%clk 0:02:38]} 0-1

[Event "*** Qualifier 2: Titled Tuesday 3|2 Blitz"]
[Site "Chess.com"]
[Date "2017.04.11"]
[Round "4"]
[White "Indianlad"]
[Black "Robin-Side"]
[Result "1-0"]
[WhiteElo "2591"]
[BlackElo "2405"]
[TimeControl "180+2"]
[EndTime "13:45:59 PDT"]
[Termination "Indianlad won by resignation"]

1. Nf3 {[%clk 0:03:02]} 1... c5 {[%clk 0:03:00.3]} 2. e4 {[%clk 0:03:03]} 2...
Nc6 {[%clk 0:03:01.2]} 3. d4 {[%clk 0:03:04.6]} 3... cxd4 {[%clk 0:03:02.1]} 4.
Nxd4 {[%clk 0:03:06.5]} 4... e5 {[%clk 0:03:03.6]} 5. Ne2 {[%clk 0:03:05.9]}
5... Nf6 {[%clk 0:03:01.3]} 6. Ng3 {[%clk 0:03:07.5]} 6... d5 {[%clk 0:02:49.3]}
7. exd5 {[%clk 0:03:08.5]} 7... Qxd5 {[%clk 0:02:42.9]} 8. Qxd5 {[%clk
0:03:09.3]} 8... Nxd5 {[%clk 0:02:43.7]} 9. c3 {[%clk 0:03:11.1]} 9... Be7
{[%clk 0:02:38.6]} 10. Nd2 {[%clk 0:03:13]} 10... O-O {[%clk 0:02:38.7]} 11. Nf3
{[%clk 0:03:14.5]} 11... f5 {[%clk 0:02:26.7]} 12. Bc4 {[%clk 0:03:08.4]} 12...
Be6 {[%clk 0:02:04]} 13. Bg5 {[%clk 0:03:09.5]} 13... e4 {[%clk 0:01:14.3]} 14.
Bxe7 {[%clk 0:03:09.7]} 14... Ncxe7 {[%clk 0:01:15.4]} 15. Ng5 {[%clk
0:03:10.7]} 15... Rf6 {[%clk 0:01:10.2]} 16. Nxe6 {[%clk 0:03:11.5]} 16... Rxe6
{[%clk 0:01:10.9]} 17. Nxf5 {[%clk 0:03:13.1]} 1-0

[Event "*** Qualifier 2: Titled Tuesday 3|2 Blitz"]
[Site "Chess.com"]
[Date "2017.04.11"]
[Round "4"]
[White "VMikhalevski"]
[Black "MaxLeto"]
[Result "1-0"]
[WhiteElo "2532"]
[BlackElo "2345"]
[TimeControl "180+2"]
[EndTime "13:47:57 PDT"]
[Termination "VMikhalevski won by resignation"]

1. Nf3 {[%clk 0:03:02]} 1... d5 {[%clk 0:01:50.8]} 2. g3 {[%clk 0:03:01.2]} 2...
c6 {[%clk 0:01:52]} 3. Bg2 {[%clk 0:03:02.5]} 3... Nf6 {[%clk 0:01:53.7]} 4. O-O
{[%clk 0:03:03.9]} 4... Bf5 {[%clk 0:01:54.4]} 5. d3 {[%clk 0:03:04.3]} 5... e6
{[%clk 0:01:55.9]} 6. c4 {[%clk 0:03:04.7]} 6... Nbd7 {[%clk 0:01:56.3]} 7. cxd5
{[%clk 0:03:03.7]} 7... exd5 {[%clk 0:01:57]} 8. Qb3 {[%clk 0:03:03.8]} 8... Qb6
{[%clk 0:01:53.3]} 9. Qc2 {[%clk 0:03:03.7]} 9... Be7 {[%clk 0:01:49.3]} 10. Nc3
{[%clk 0:03:04.7]} 10... O-O {[%clk 0:01:48.9]} 11. e4 {[%clk 0:03:04.9]} 11...
Bg6 {[%clk 0:01:19.6]} 12. Be3 {[%clk 0:02:53]} 12... Qa6 {[%clk 0:01:11.3]} 13.
Nh4 {[%clk 0:02:52.7]} 13... Rac8 {[%clk 0:00:40.5]} 14. Rfe1 {[%clk 0:02:41.3]}
14... Rfe8 {[%clk 0:00:39.2]} 15. Bh3 {[%clk 0:02:37]} 15... dxe4 {[%clk
0:00:31.6]} 16. Nxg6 {[%clk 0:02:36]} 16... hxg6 {[%clk 0:00:25.8]} 17. dxe4
{[%clk 0:02:34.8]} 17... Rcd8 {[%clk 0:00:25.2]} 18. f4 {[%clk 0:02:21.2]} 18...
Nc5 {[%clk 0:00:21.9]} 19. e5 {[%clk 0:02:18.7]} 19... Nd5 {[%clk 0:00:16.5]}
20. Nxd5 {[%clk 0:02:18.4]} 20... Rxd5 {[%clk 0:00:18.4]} 21. Bg2 {[%clk
0:02:19.4]} 21... Nd3 {[%clk 0:00:18.4]} 22. Bxd5 {[%clk 0:02:15.9]} 22... Nxe1
{[%clk 0:00:19.1]} 23. Bxf7+ {[%clk 0:02:12.1]} 23... Kxf7 {[%clk 0:00:21]} 24.
Qb3+ {[%clk 0:02:10.5]} 24... Kf8 {[%clk 0:00:21.3]} 25. Rxe1 {[%clk 0:02:11.6]}
25... Rd8 {[%clk 0:00:22]} 26. Qe6 {[%clk 0:02:02.4]} 1-0

[Event "*** Qualifier 2: Titled Tuesday 3|2 Blitz"]
[Site "Chess.com"]
[Date "2017.04.11"]
[Round "4"]
[White "jlandaw"]
[Black "saraswathii"]
[Result "1-0"]
[WhiteElo "2389"]
[BlackElo "2185"]
[TimeControl "180+2"]
[EndTime "13:48:21 PDT"]
[Termination "jlandaw won by resignation"]

1. e4 {[%clk 0:03:02]} 1... c5 {[%clk 0:02:52.2]} 2. Nc3 {[%clk 0:03:02.2]} 2...
e6 {[%clk 0:02:49.1]} 3. g3 {[%clk 0:03:02.8]} 3... Nc6 {[%clk 0:02:48.2]} 4.
Bg2 {[%clk 0:03:03.5]} 4... Nf6 {[%clk 0:02:48.2]} 5. Nge2 {[%clk 0:03:03.6]}
5... d5 {[%clk 0:02:49.2]} 6. exd5 {[%clk 0:03:05.5]} 6... exd5 {[%clk
0:02:49.1]} 7. d4 {[%clk 0:03:06.7]} 7... c4 {[%clk 0:02:49]} 8. Nf4 {[%clk
0:03:06.9]} 8... Be6 {[%clk 0:02:49.2]} 9. O-O {[%clk 0:03:06.1]} 9... Bd6
{[%clk 0:02:47.5]} 10. Nxe6 {[%clk 0:03:02.2]} 10... fxe6 {[%clk 0:02:48.3]} 11.
Re1 {[%clk 0:03:03.8]} 11... Kf7 {[%clk 0:02:41.9]} 12. Ne2 {[%clk 0:02:54.1]}
12... Re8 {[%clk 0:02:37.5]} 13. Bf4 {[%clk 0:02:54.6]} 13... Bxf4 {[%clk
0:02:35.5]} 14. Nxf4 {[%clk 0:02:56.5]} 14... Qb6 {[%clk 0:02:36.2]} 15. Bh3
{[%clk 0:02:52.5]} 15... Nxd4 {[%clk 0:02:25.4]} 16. c3 {[%clk 0:02:50]} 16...
e5 {[%clk 0:02:20.7]} 17. Nxd5 {[%clk 0:02:11.2]} 17... Nxd5 {[%clk 0:02:15.5]}
18. cxd4 {[%clk 0:02:12.3]} 18... Qxd4 {[%clk 0:02:16.2]} 19. Qh5+ {[%clk
0:02:13.3]} 19... Kg8 {[%clk 0:02:14.9]} 20. Rad1 {[%clk 0:02:12.8]} 20... Nf6
{[%clk 0:02:09]} 21. Rxd4 {[%clk 0:01:49.4]} 21... Nxh5 {[%clk 0:02:07.1]} 22.
Rxc4 {[%clk 0:01:50.9]} 22... Re7 {[%clk 0:02:03.6]} 23. Rc5 {[%clk 0:01:20.7]}
23... Rae8 {[%clk 0:02:02.6]} 24. f4 {[%clk 0:01:21.8]} 24... g6 {[%clk
0:01:52.7]} 25. Rcxe5 {[%clk 0:01:14.8]} 25... Rxe5 {[%clk 0:01:50.9]} 26. Rxe5
{[%clk 0:01:16.7]} 26... Rxe5 {[%clk 0:01:52]} 27. fxe5 {[%clk 0:01:17.6]} 27...
Kf7 {[%clk 0:01:53.6]} 28. Kf2 {[%clk 0:01:18.6]} 28... Ng7 {[%clk 0:01:53.2]}
29. Ke3 {[%clk 0:01:19.4]} 29... Ke7 {[%clk 0:01:51.9]} 30. Kd4 {[%clk
0:01:03.8]} 30... Ne8 {[%clk 0:01:44.4]} 31. Bg2 {[%clk 0:01:04.1]} 31... b6
{[%clk 0:01:41.1]} 32. Kd5 {[%clk 0:01:02.5]} 32... Kd7 {[%clk 0:01:37.2]} 33.
Bh3+ {[%clk 0:01:02.4]} 1-0

[Event "*** Qualifier 2: Titled Tuesday 3|2 Blitz"]
[Site "Chess.com"]
[Date "2017.04.11"]
[Round "4"]
[White "korason34"]
[Black "JaimeSantosLatasa"]
[Result "0-1"]
[WhiteElo "2351"]
[BlackElo "2529"]
[TimeControl "180+2"]
[EndTime "13:48:31 PDT"]
[Termination "JaimeSantosLatasa won by checkmate"]

1. e4 {[%clk 0:03:02]} 1... e5 {[%clk 0:03:00.5]} 2. Nf3 {[%clk 0:03:02.6]} 2...
Nc6 {[%clk 0:03:01.4]} 3. Bb5 {[%clk 0:03:03.2]} 3... a6 {[%clk 0:03:02.7]} 4.
Ba4 {[%clk 0:03:04.1]} 4... d6 {[%clk 0:03:03.9]} 5. O-O {[%clk 0:03:00.9]} 5...
Bd7 {[%clk 0:03:04.6]} 6. d4 {[%clk 0:02:59]} 6... b5 {[%clk 0:03:04.8]} 7. Bb3
{[%clk 0:02:54.8]} 7... Nxd4 {[%clk 0:03:05.9]} 8. Nxd4 {[%clk 0:02:52.7]} 8...
exd4 {[%clk 0:03:07.8]} 9. a4 {[%clk 0:02:50.1]} 9... c5 {[%clk 0:03:02.9]} 10.
Bd5 {[%clk 0:02:50]} 10... Rb8 {[%clk 0:03:03.4]} 11. axb5 {[%clk 0:02:48.7]}
11... axb5 {[%clk 0:03:04.2]} 12. Bf4 {[%clk 0:02:32.3]} 12... Nf6 {[%clk
0:03:03.8]} 13. Re1 {[%clk 0:02:32.2]} 13... Be7 {[%clk 0:02:59.5]} 14. Nd2
{[%clk 0:02:25.9]} 14... O-O {[%clk 0:02:59.5]} 15. Ra7 {[%clk 0:02:23.4]} 15...
Qb6 {[%clk 0:02:55.8]} 16. Qa1 {[%clk 0:02:22.5]} 16... Rfe8 {[%clk 0:02:55.5]}
17. Nf3 {[%clk 0:02:18.6]} 17... Bf8 {[%clk 0:02:54.4]} 18. Bg5 {[%clk 0:02:14]}
18... Nxd5 {[%clk 0:02:52.1]} 19. exd5 {[%clk 0:02:09.2]} 19... Bg4 {[%clk
0:02:51.5]} 20. Rxe8 {[%clk 0:02:01.4]} 20... Rxe8 {[%clk 0:02:50]} 21. Ra8
{[%clk 0:02:00.6]} 21... Rxa8 {[%clk 0:02:41.1]} 22. Qxa8 {[%clk 0:02:02.5]}
22... Qc7 {[%clk 0:02:39.2]} 23. h3 {[%clk 0:01:54.7]} 23... Bf5 {[%clk
0:02:35.6]} 24. c3 {[%clk 0:01:46.6]} 24... h6 {[%clk 0:02:34.3]} 25. Bf4 {[%clk
0:01:39.8]} 25... d3 {[%clk 0:02:29.8]} 26. Nd2 {[%clk 0:01:36.3]} 26... Bc8
{[%clk 0:02:28.6]} 27. c4 {[%clk 0:01:30]} 27... Bb7 {[%clk 0:02:24.6]} 28. Qa7
{[%clk 0:01:20.9]} 28... g5 {[%clk 0:02:14.9]} 29. Bg3 {[%clk 0:01:16.5]} 29...
Qe7 {[%clk 0:02:03.2]} 30. cxb5 {[%clk 0:00:44.4]} 30... Qe1+ {[%clk 0:01:57.7]}
31. Kh2 {[%clk 0:00:45.4]} 31... Bxd5 {[%clk 0:01:59.1]} 32. Qb8 {[%clk
0:00:37.3]} 32... Qxd2 {[%clk 0:01:56.3]} 33. Bxd6 {[%clk 0:00:37]} 33... Qxf2
{[%clk 0:01:56.6]} 34. Qxf8+ {[%clk 0:00:35.6]} 34... Kh7 {[%clk 0:01:57.4]} 35.
Be5 {[%clk 0:00:35]} 35... Qxg2# {[%clk 0:01:56.7]} 0-1

[Event "*** Qualifier 2: Titled Tuesday 3|2 Blitz"]
[Site "Chess.com"]
[Date "2017.04.11"]
[Round "4"]
[White "Blitzstream"]
[Black "TheNextLevelFan"]
[Result "0-1"]
[WhiteElo "2467"]
[BlackElo "2392"]
[TimeControl "180+2"]
[EndTime "13:48:33 PDT"]
[Termination "TheNextLevelFan won by resignation"]

1. g4 {[%clk 0:03:02]} 1... d5 {[%clk 0:03:00.1]} 2. Bg2 {[%clk 0:03:01.7]} 2...
c6 {[%clk 0:03:01.4]} 3. h3 {[%clk 0:03:02.1]} 3... e5 {[%clk 0:03:01.8]} 4. b3
{[%clk 0:02:48.9]} 4... h5 {[%clk 0:03:02.2]} 5. Bb2 {[%clk 0:02:46.2]} 5... Bd6
{[%clk 0:03:02.6]} 6. gxh5 {[%clk 0:02:18.3]} 6... Nf6 {[%clk 0:03:02.9]} 7. e3
{[%clk 0:02:05.7]} 7... Nxh5 {[%clk 0:02:55.2]} 8. c4 {[%clk 0:02:05.4]} 8...
Qg5 {[%clk 0:02:42.4]} 9. Kf1 {[%clk 0:02:03.3]} 9... dxc4 {[%clk 0:02:03.7]}
10. Nc3 {[%clk 0:01:59.8]} 10... Bf5 {[%clk 0:01:53.9]} 11. bxc4 {[%clk
0:01:57.7]} 11... Bd3+ {[%clk 0:01:49.1]} 12. Nge2 {[%clk 0:01:53.5]} 12... Bxc4
{[%clk 0:01:31.9]} 13. d3 {[%clk 0:01:50.1]} 13... Be6 {[%clk 0:01:29.4]} 14.
Ne4 {[%clk 0:01:42.5]} 14... Qe7 {[%clk 0:01:29.5]} 15. Nxd6+ {[%clk 0:01:37.8]}
15... Qxd6 {[%clk 0:01:31.4]} 16. Nc3 {[%clk 0:01:36.9]} 16... Nf6 {[%clk
0:01:27.5]} 17. Qa4 {[%clk 0:01:18.8]} 17... Qxd3+ {[%clk 0:01:28]} 18. Kg1
{[%clk 0:01:17.7]} 18... O-O {[%clk 0:01:25.6]} 19. Rd1 {[%clk 0:01:00]} 19...
Qg6 {[%clk 0:01:25.9]} 20. Kf1 {[%clk 0:00:55.8]} 20... Nbd7 {[%clk 0:01:25.5]}
21. Ne4 {[%clk 0:00:43.4]} 21... Nb6 {[%clk 0:01:22.9]} 22. Nxf6+ {[%clk
0:00:40.1]} 22... Qxf6 {[%clk 0:01:24.2]} 23. Qe4 {[%clk 0:00:27.3]} 23... Nc4
{[%clk 0:01:24.8]} 24. Bc3 {[%clk 0:00:25.3]} 24... Bd5 {[%clk 0:01:25.7]} 25.
Qg4 {[%clk 0:00:20.8]} 25... Nxe3+ {[%clk 0:01:26.2]} 0-1